bitfinex/quotes_BTCUSD_20250316
["timestamp","ask_amount","ask_price","bid_price","bid_amount"]
[1742124561701,0.00248,83001.0,83000.0,0.47436193]
[1742124561940,0.00248,83001.0,83000.0,0.46836193]
[1742124562151,0.00248,83001.0,83000.0,0.47436193]
[1742124562600,0.00248,83001.0,83000.0,0.46236193]
[1742124563046,0.00248,83001.0,83000.0,0.46836193]
[1742124564030,0.00248,83001.0,83000.0,0.47436193]
[1742124567017,0.00248,83001.0,83000.0,1.96836193]
[1742124567905,0.00248,83001.0,83000.0,1.97436193]
[1742124568643,0.00248,83001.0,83000.0,2.10847781]
[1742124568885,0.0001691,83014.0,83003.0,0.3]
[1742124569119,0.0001691,83014.0,83005.0,0.31454085]
[1742124569311,0.0001691,83014.0,83007.0,0.31454085]
[1742124569577,0.0001691,83014.0,83009.0,0.31454085]
[1742124569794,0.0001691,83014.0,83011.0,0.01454085]
[1742124571415,0.0001691,83014.0,83013.0,0.02469295]
[1742124571648,0.0001691,83014.0,83013.0,0.07117383]
[1742124572072,0.0001691,83014.0,83013.0,0.50528971]
[1742124572200,0.0001691,83014.0,83013.0,0.53600883]
[1742124573309,0.0001691,83014.0,83013.0,0.54200883]
[1742124573510,0.0001691,83014.0,83013.0,1.23450883]
[1742124574253,0.0001691,83014.0,83013.0,1.23950883]
[1742124574706,0.0001691,83014.0,83013.0,1.24550883]
[1742124574877,0.0001691,83014.0,83013.0,1.28950883]
[1742124575215,0.0001691,83014.0,83013.0,1.29550883]
[1742124575417,0.0001691,83014.0,83013.0,2.83305848]
[1742124575653,0.0001691,83014.0,83013.0,2.79550883]
[1742124576464,0.0001691,83014.0,83013.0,3.49550883]
[1742124577494,0.0001691,83035.0,83018.0,0.05]
[1742124577792,0.0001691,83035.0,83020.0,0.31454085]
[1742124578022,0.0001691,83035.0,83022.0,0.31454085]
[1742124578193,0.0001691,83035.0,83024.0,0.01454085]
[1742124578520,0.0001691,83035.0,83026.0,0.31454085]
[1742124578744,0.0001691,83035.0,83026.0,0.43411588]
[1742124579073,0.0001691,83035.0,83034.0,0.02409782]
[1742124579276,0.0002106,83035.0,83034.0,0.02409782]
[1742124579917,0.0002106,83035.0,83026.0,0.003]
[1742124580123,0.0752,83033.0,83026.0,0.0303]
[1742124581102,0.00150542,83032.0,83026.0,0.42453865]
[1742124581442,0.00150542,83032.0,83026.0,0.42853865]
[1742124581596,0.00150542,83032.0,83026.0,0.41998665]
[1742124581597,0.087243,83031.0,83026.0,0.41998665]
[1742124581800,0.0752,83027.0,83026.0,0.41598665]
[1742124582026,0.31759059,83027.0,83026.0,0.41998665]
[1742124582225,0.0752,83027.0,83026.0,0.41998665]
[1742124582425,0.08874959,83027.0,83026.0,0.025748]
[1742124582603,0.13594959,83027.0,83026.0,0.004]
[1742124582802,0.37683759,83027.0,83012.0,0.39423865]
[1742124583012,0.0778,83026.0,83012.0,0.39423865]
[1742124583377,0.00150576,83025.0,83012.0,0.39423865]
[1742124583580,0.15744,83024.0,83012.0,0.39423865]
[1742124583774,0.00150576,83023.0,83013.0,0.04032928]
[1742124583981,0.15744,83024.0,83013.0,0.04032928]
[1742124584417,0.0778,83026.0,83013.0,0.04032928]
[1742124585510,0.15744,83028.0,83013.0,0.04032928]
[1742124585669,0.15744,83028.0,83013.0,0.04532928]
[1742124585864,0.15744,83028.0,83014.0,0.04649434]
[1742124586281,0.02038613,83030.0,83014.0,0.04649434]
[1742124586471,0.0778,83028.0,83014.0,0.04649434]
[1742124586664,0.0778,83026.0,83014.0,0.04649434]
[1742124586869,0.00150566,83025.0,83014.0,0.04649434]
[1742124587118,0.00150566,83025.0,83015.0,0.04621084]
[1742124587549,0.0778,83026.0,83015.0,0.04621084]
[1742124588098,0.0778,83026.0,83016.0,0.39423865]
[1742124589568,0.0001692,83025.0,83016.0,0.39823865]
[1742124589920,0.0001692,83025.0,83016.0,0.39423865]
[1742124590122,0.0001692,83025.0,83017.0,0.34527708]
[1742124590878,0.0001692,83025.0,83019.0,0.3]
[1742124591094,0.0001692,83025.0,83021.0,0.3]
[1742124591503,0.0001692,83025.0,83021.0,0.32361253]
[1742124592599,0.0001692,83025.0,83021.0,0.32861253]
[1742124592838,0.0001692,83025.0,83022.0,0.05119839]
[1742124593073,0.0001692,83025.0,83024.0,0.3]
[1742124593306,0.0001692,83025.0,83024.0,0.43411588]
[1742124595195,0.0001692,83025.0,83022.0,0.05719839]
[1742124595484,0.0001692,83025.0,83024.0,0.3]
[1742124595695,0.0001692,83025.0,83024.0,0.35127708]
[1742124595878,0.0001692,83025.0,83024.0,0.35727708]
[1742124596890,0.0001692,83025.0,83024.0,0.75151573]
[1742124597267,0.0001692,83025.0,83024.0,0.87109076]
[1742124597911,0.0001692,83025.0,83024.0,0.88563161]
[1742124599304,0.0001692,83025.0,83024.0,0.75151573]
[1742124601318,0.0001692,83025.0,83024.0,0.45151573]
[1742124602684,0.08207478,83025.0,83024.0,0.40623865]
[1742124602921,0.11149281,83025.0,83024.0,0.012]
[1742124603090,0.11299848,83025.0,83024.0,0.012]
[1742124603296,0.15849848,83025.0,83024.0,0.012]
[1742124603496,0.378862,83016.0,83015.0,0.0003382]
[1742124603736,0.536142,83016.0,83015.0,0.0003382]
[1742124604385,0.85502557,83016.0,83015.0,0.0003382]
[1742124604585,0.012047,83005.0,83001.0,0.0003382]
[1742124604788,0.253005,83002.0,83001.0,0.01177917]
[1742124605104,0.253005,83002.0,83001.0,0.0003382]
[1742124605105,0.333405,83002.0,83001.0,0.0003382]
[1742124605711,0.35229194,83002.0,83001.0,0.0003382]
[1742124605915,0.35229194,83002.0,83001.0,0.00073034]
[1742124606199,0.35229194,83002.0,83001.0,0.01073034]
[1742124606443,0.35229194,83002.0,83001.0,0.00573034]
[1742124606589,0.65229194,83002.0,83001.0,0.00573034]
[1742124606792,0.633405,83002.0,83001.0,0.00573034]
[1742124607379,0.633405,83002.0,83001.0,0.00073034]
[1742124607580,0.312048,83001.0,83000.0,0.0053382]
[1742124607778,0.25302,82997.0,82996.0,0.0003382]
[1742124607981,0.25302,82997.0,82996.0,0.00072652]
[1742124607982,0.85574085,82997.0,82996.0,0.00072652]
[1742124608779,0.633444,82989.0,82974.0,0.39423865]
[1742124608985,0.678944,82989.0,82988.0,0.00072765]
[1742124609724,0.69783532,82989.0,82988.0,0.00072765]
[1742124611196,0.85511532,82989.0,82988.0,0.00072765]
[1742124611752,0.85511532,82989.0,82988.0,0.00172765]
[1742124612502,0.86965617,82989.0,82988.0,0.00172765]
[1742124612665,0.253057,82985.0,82970.0,0.0003378]
[1742124612867,0.378657,82985.0,82984.0,0.00075266]
[1742124613540,0.69319785,82985.0,82984.0,0.00075266]
[1742124614975,0.71506966,82985.0,82984.0,0.00075266]
[1742124615366,0.71606966,82985.0,82984.0,0.00075266]
[1742124616233,0.69419785,82985.0,82984.0,0.00075266]
[1742124616852,0.71209151,82985.0,82984.0,0.00075266]
[1742124617013,0.71309151,82985.0,82984.0,0.00075266]
[1742124617456,0.60277366,82985.0,82984.0,0.00075266]
[1742124617707,0.679657,82985.0,82984.0,0.00075266]
[1742124617904,0.836937,82985.0,82984.0,0.00075266]
[1742124618105,0.679657,82985.0,82984.0,0.00075266]
[1742124618312,0.835937,82985.0,82984.0,0.00075266]
[1742124618725,0.836937,82985.0,82984.0,0.00075266]
[1742124619351,0.536937,82985.0,82984.0,0.00075266]
[1742124619572,0.536937,82985.0,82984.0,0.001]
[1742124620941,0.535937,82985.0,82984.0,0.001]
[1742124621736,0.835937,82985.0,82984.0,0.001]
[1742124622156,0.85483036,82985.0,82984.0,0.001]
[1742124622356,0.253089,82975.0,82958.0,0.01209475]
[1742124622692,0.00150677,82974.0,82959.0,0.04063334]
[1742124623257,0.540993,82990.0,82959.0,0.04063334]
[1742124623258,0.00150677,82978.0,82959.0,0.04063334]
[1742124623456,0.24251966,82983.0,82959.0,0.04063334]
[1742124623722,0.01889311,82971.0,82959.0,0.04063334]
[1742124624034,0.00150666,82970.0,82959.0,0.04063334]
[1742124624230,0.00150666,82970.0,82960.0,0.05150887]
[1742124625403,0.00150666,82970.0,82959.0,0.008]
[1742124625592,0.00150666,82970.0,82959.0,0.004]
[1742124625795,0.00150666,82970.0,82958.0,0.00011669]
[1742124626016,0.00150666,82970.0,82960.0,0.009]
[1742124626143,0.00150666,82970.0,82961.0,0.39423865]
[1742124626343,0.00150666,82970.0,82962.0,0.04154085]
[1742124626773,0.01889311,82971.0,82962.0,0.04154085]
[1742124627148,0.0001692,82988.0,82963.0,0.4087795]
[1742124627395,0.0001692,82988.0,82966.0,0.0801]
[1742124627570,0.0001692,82988.0,82969.0,0.01454085]
[1742124627777,0.0001692,82988.0,82972.0,0.01454085]
[1742124627971,0.0001692,82988.0,82979.0,0.02423466]
[1742124628175,0.0001692,82988.0,82981.0,0.3]
[1742124628401,0.0001692,82988.0,82982.0,0.39423865]
[1742124628934,0.0001692,82988.0,82984.0,0.3794]
[1742124629117,0.0001692,82988.0,82985.0,0.04154085]
[1742124629382,0.0001692,82988.0,82987.0,0.3]
[1742124629588,0.0001692,82988.0,82987.0,0.41957503]
[1742124629790,0.0001692,82988.0,82987.0,0.39423865]
[1742124630130,0.0001692,82988.0,82987.0,0.39435534]
[1742124630333,0.0001692,82988.0,82987.0,0.43794496]
[1742124630530,0.0001692,82988.0,82987.0,0.44394496]
[1742124630933,0.0001692,82988.0,82987.0,0.43794496]
[1742124631358,0.0001692,82988.0,82987.0,0.44394496]
[1742124631578,0.0001692,82988.0,82987.0,0.44994496]
[1742124632009,0.0001692,82988.0,82987.0,0.44394496]
[1742124632301,0.0001692,82988.0,82987.0,0.44994496]
[1742124632858,0.0001692,82988.0,82987.0,0.44394496]
[1742124633286,0.0001692,82988.0,82987.0,0.44994496]
[1742124633494,0.0001692,82988.0,82987.0,0.40035534]
[1742124633495,0.2454782,82988.0,82987.0,0.40035534]
[1742124633693,0.2454782,82988.0,82987.0,0.39435534]
[1742124634014,0.5454782,82988.0,82987.0,0.01211669]
[1742124634373,0.5454782,82988.0,82987.0,0.00611669]
[1742124634662,0.5454782,82988.0,82987.0,0.00011669]
[1742124634854,0.5454782,82988.0,82987.0,0.00411669]
[1742124635210,0.5454782,82988.0,82987.0,0.00011669]
[1742124640286,0.5334292,82988.0,82987.0,0.00011669]
[1742124640536,0.5454782,82988.0,82987.0,0.00011669]
[1742124640711,0.5454782,82988.0,82987.0,0.00111669]
[1742124640882,0.5454782,82988.0,82987.0,0.00011669]
[1742124641290,0.5454782,82988.0,82987.0,0.00111669]
[1742124643148,0.012051,82974.0,82953.0,0.37158552]
[1742124643281,0.00150674,82973.0,82954.0,0.04042455]
[1742124643487,0.15712,82972.0,82954.0,0.04042455]
[1742124643805,0.00150674,82971.0,82954.0,0.04042455]
[1742124644044,0.00150674,82971.0,82955.0,0.04342074]
[1742124644657,0.01889334,82968.0,82955.0,0.04342074]
[1742124644861,0.00150673,82967.0,82955.0,0.04342074]
[1742124645449,0.00150673,82967.0,82955.0,0.05342074]
[1742124646459,0.01889334,82968.0,82956.0,1.54472035]
[1742124646881,0.01889334,82968.0,82957.0,0.37158552]
[1742124647964,0.01889334,82968.0,82957.0,0.37758552]
[1742124648402,0.01889334,82968.0,82957.0,0.38358552]
[1742124648629,0.01889334,82968.0,82958.0,0.05175512]
[1742124650436,0.0125234,85281.0,82959.0,0.0781]
[1742124650437,0.15858662,82983.0,82959.0,0.0781]
[1742124650643,0.012051,82979.0,82958.0,0.05775512]
[1742124650822,0.00150649,82978.0,82958.0,0.05775512]
[1742124651020,0.00150646,82980.0,82959.0,0.04415311]
[1742124651854,0.00150646,82980.0,82959.0,0.05015311]
[1742124652059,0.00150646,82982.0,82959.0,0.05015311]
[1742124652477,0.00150646,82982.0,82959.0,0.006]
[1742124652635,0.00150646,82982.0,82960.0,0.37158552]
[1742124653537,0.01889199,82977.0,82960.0,0.37158552]
[1742124654160,0.01889199,82977.0,82960.0,0.37458552]
[1742124654390,0.01889199,82977.0,82960.0,0.37758552]
[1742124654593,0.01889199,82977.0,82961.0,0.04020367]
[1742124655002,0.01889199,82977.0,82962.0,0.44968552]
[1742124655436,0.01889199,82977.0,82963.0,1.5]
[1742124656181,0.0001692,82988.0,82963.0,1.5]
[1742124656182,0.0001692,82988.0,82967.0,0.01454085]
[1742124656300,0.0001692,82988.0,82969.0,0.31454085]
[1742124656503,0.0001692,82988.0,82971.0,0.31454085]
[1742124656760,0.0001692,82988.0,82973.0,0.3381636]
[1742124656972,0.0001692,82988.0,82975.0,0.31454085]
[1742124657164,0.0001692,82988.0,82977.0,0.01454085]
[1742124657365,0.0001692,82988.0,82979.0,0.01454085]
[1742124657541,0.0001692,82988.0,82981.0,0.01454085]
[1742124657720,0.0001692,82988.0,82983.0,0.01454085]
[1742124657928,0.0001692,82988.0,82983.0,0.13411588]
[1742124658570,0.0001692,82988.0,82983.0,0.13423247]
[1742124658775,0.0001692,82988.0,82985.0,0.01454085]
[1742124659903,0.0001692,82988.0,82983.0,0.00011659]
[1742124660308,0.0001692,82988.0,82985.0,0.006]
[1742124661308,0.0001692,82988.0,82983.0,0.00611659]
[1742124661552,0.0001692,82988.0,82986.0,0.37158552]
[1742124661701,0.253051,82987.0,82986.0,0.37158552]
[1742124661897,0.01205,82986.0,82985.0,0.006]
[1742124662075,0.01355647,82986.0,82985.0,0.006]
[1742124662859,0.01355647,82986.0,82985.0,0.012]
[1742124663317,0.00150647,82986.0,82985.0,0.012]
[1742124663493,0.00150646,82987.0,82985.0,0.006]
[1742124663720,0.00150646,82987.0,82985.0,0.009]
[1742124664276,0.00150646,82987.0,82985.0,0.003]
[1742124664488,0.00150646,82987.0,82983.0,0.00011659]
[1742124664815,0.00150646,82987.0,82986.0,0.006]
[1742124664986,0.332554,82986.0,82985.0,0.003]
[1742124665308,0.332554,82986.0,82985.0,0.006]
[1742124665468,0.632554,82986.0,82985.0,0.003]
[1742124665672,0.682154,82986.0,82985.0,0.003]
[1742124666095,0.682154,82986.0,82983.0,0.00011659]
[1742124666096,0.25306,82984.0,82983.0,0.00011659]
[1742124666252,0.14115,82986.0,82983.0,0.00011659]
[1742124666457,0.30150662,82985.0,82983.0,0.00311659]
[1742124666658,0.25306,82984.0,82983.0,0.00311659]
[1742124666891,0.29992077,82985.0,82983.0,0.00011659]
[1742124667104,0.00150662,82984.0,82983.0,0.00311659]
[1742124667299,0.00150662,82984.0,82983.0,0.00411659]
[1742124667500,0.00150662,82984.0,82983.0,0.00111659]
[1742124667723,0.00150662,82984.0,82983.0,0.00011659]
[1742124667948,0.00150662,82984.0,82983.0,0.00211659]
[1742124668147,0.00150662,82984.0,82983.0,0.00011659]
[1742124668148,0.15696,82984.0,82983.0,0.00011659]
[1742124668373,0.16901,82984.0,82983.0,0.00011659]
[1742124668547,0.16901,82984.0,82983.0,0.00211659]
[1742124668904,0.46901,82984.0,82983.0,0.00211659]
[1742124669256,0.46901,82984.0,82983.0,0.00311659]
[1742124669780,0.45696,82984.0,82983.0,0.00211659]
[1742124669980,0.46901,82984.0,82983.0,0.00311659]
[1742124671525,0.45696,82984.0,82983.0,0.00311659]
[1742124671690,0.46901,82984.0,82983.0,0.00311659]
[1742124672563,0.46901,82984.0,82983.0,0.00211659]
[1742124672933,0.54801,82984.0,82983.0,0.00311659]
[1742124673509,0.54801,82984.0,82983.0,0.00111659]
[1742124674030,0.54801,82984.0,82983.0,0.00211659]
[1742124674190,0.54801,82984.0,82983.0,0.00011659]
[1742124676078,0.54901,82984.0,82983.0,0.00011659]
[1742124676278,0.56790317,82984.0,82983.0,0.00011659]
[1742124680416,0.56782317,82984.0,82983.0,0.00011659]
[1742124681864,0.41094317,82984.0,82983.0,0.00011659]
[1742124682069,0.56782317,82984.0,82983.0,0.00011659]
[1742124684756,0.56782317,82984.0,82983.0,0.00511659]
[1742124687779,0.56782317,82984.0,82983.0,0.00545499]
[1742124692235,0.56778317,82984.0,82983.0,0.00545499]
[1742124692442,0.6873582,82984.0,82983.0,0.00545499]
[1742124692617,0.70689905,82984.0,82983.0,0.00545499]
[1742124694619,0.56678317,82984.0,82983.0,0.00545499]
[1742124694839,0.56978317,82984.0,82983.0,0.00545499]
[1742124697300,0.56974317,82984.0,82983.0,0.00545499]
[1742124699536,0.41294317,82984.0,82983.0,0.00545499]
[1742124699796,0.56970317,82984.0,82983.0,0.00545499]
[1742124703611,0.41294317,82984.0,82983.0,0.00545499]
[1742124703890,0.47181,82984.0,82983.0,0.00545499]
[1742124704493,0.31505,82984.0,82983.0,0.00545499]
[1742124704805,0.45972,82984.0,82983.0,0.00545499]
[1742124705589,0.45672,82984.0,82983.0,0.00545499]
[1742124706603,0.0001692,82985.0,82983.0,0.00545499]
[1742124706944,0.15672,82984.0,82983.0,0.00545499]
[1742124707146,0.15672,82984.0,82983.0,0.00645499]
[1742124707299,0.01906028,82985.0,82983.0,0.00645499]
[1742124707703,0.01906028,82985.0,82984.0,0.37158552]
[1742124707907,0.01906028,82985.0,82984.0,0.49513957]
[1742124708107,0.0001692,82985.0,82984.0,0.49513957]
[1742124708713,0.0001692,82985.0,82984.0,0.41413957]
[1742124709602,0.1568492,82985.0,82984.0,0.37158552]
[1742124709867,0.1568492,82985.0,82983.0,0.00545499]
[1742124709868,0.01205,82984.0,82983.0,0.00545499]
[1742124710034,0.0135565,82984.0,82983.0,0.00545499]
[1742124710228,0.0015065,82984.0,82983.0,0.00545499]
[1742124711361,0.02039744,82984.0,82983.0,0.00845499]
[1742124711581,0.11124744,82984.0,82983.0,0.00845499]
[1742124711803,0.11124744,82984.0,82983.0,0.01145499]
[1742124712413,0.11124744,82984.0,82983.0,0.00845499]
[1742124713771,0.11124744,82984.0,82983.0,0.01045499]
[1742124713967,0.41124744,82984.0,82983.0,0.00745499]
[1742124714172,0.40974094,82984.0,82983.0,0.01045499]
[1742124714868,0.40974094,82984.0,82983.0,0.00845499]
[1742124715052,0.40974094,82984.0,82983.0,0.00645499]
[1742124715427,0.40974094,82984.0,82983.0,0.00745499]
[1742124716060,0.33094094,82984.0,82983.0,0.00745499]
[1742124717810,0.48754094,82984.0,82983.0,0.00745499]
[1742124724097,0.48754094,82984.0,82983.0,0.00645499]
[1742124724347,0.48754094,82984.0,82983.0,0.00545499]
[1742124724552,0.48754094,82984.0,82983.0,0.00645499]
[1742124725699,0.62536319,82984.0,82983.0,0.00645499]
[1742124725919,0.71176319,82984.0,82983.0,0.00645499]
[1742124726122,0.76176319,82984.0,82983.0,0.00645499]
[1742124726322,0.74287225,82984.0,82983.0,0.00645499]
[1742124726844,0.74287225,82984.0,82983.0,0.00545499]
[1742124727061,0.74387225,82984.0,82983.0,0.00545499]
[1742124727257,0.69387225,82984.0,82983.0,0.00545499]
[1742124727522,0.74387225,82984.0,82983.0,0.00545499]
[1742124727912,0.74387225,82984.0,82952.0,0.0003378]
[1742124727913,0.553151,82954.0,82952.0,0.0003378]
[1742124728222,0.709711,82954.0,82953.0,0.00045504]
[1742124728998,0.73174333,82954.0,82953.0,0.00045504]
[1742124729712,0.75064397,82954.0,82953.0,0.00045504]
[1742124730262,0.75064397,82954.0,82953.0,0.00145504]
[1742124730490,0.75064397,82954.0,82953.0,0.00045504]
[1742124730919,0.75164397,82954.0,82953.0,0.00045504]
[1742124731079,0.75264397,82954.0,82953.0,0.00045504]
[1742124731293,0.877219,82954.0,82953.0,4e-08]
[1742124731491,0.877219,82954.0,82951.0,8.4e-07]
[1742124731492,0.608158,82952.0,82951.0,8.4e-07]
[1742124731713,1.12099885,82952.0,82951.0,0.00011745]
[1742124732542,1.16659885,82952.0,82951.0,0.00011745]
[1742124732853,1.2554401,82952.0,82951.0,0.00011745]
[1742124733080,1.28561405,82952.0,82951.0,4.5e-07]
[1742124733295,1.28561405,82952.0,82944.0,5.5e-07]
[1742124733296,0.74361985,82945.0,82944.0,5.5e-07]
[1742124733500,0.06954085,82931.0,82930.0,3.5e-07]
[1742124733673,0.66052675,82931.0,82930.0,3.5e-07]
[1742124733901,0.72086883,82931.0,82930.0,0.00011681]
[1742124734388,0.482958,82931.0,82930.0,0.00011681]
[1742124734606,0.589478,82931.0,82930.0,0.00011681]
[1742124734808,0.61151033,82931.0,82930.0,0.00011681]
[1742124734983,0.66151033,82931.0,82930.0,0.00011681]
[1742124735184,0.66551033,82931.0,82930.0,0.00011681]
[1742124735999,0.66555033,82931.0,82930.0,0.00011681]
[1742124736407,0.61855033,82931.0,82930.0,0.00011681]
[1742124736810,0.44993233,82931.0,82930.0,0.00011681]
[1742124737017,0.18559233,82931.0,82930.0,0.00011681]
[1742124737226,0.48709992,82931.0,82930.0,0.00011681]
[1742124737393,0.48559233,82931.0,82930.0,0.00011681]
[1742124737795,0.49765033,82931.0,82930.0,0.00011681]
[1742124737995,0.48159233,82931.0,82930.0,0.00011681]
[1742124738378,0.469618,82931.0,82930.0,0.00011681]
[1742124740639,0.49151667,82931.0,82930.0,0.00011681]
[1742124741246,1.3136165,82931.0,82930.0,0.00011681]
[1742124741796,1.50405735,82931.0,82930.0,0.00011681]
[1742124742456,1.56590733,82931.0,82930.0,0.00011681]
[1742124742629,1.54400866,82931.0,82930.0,0.00011681]
[1742124743244,1.47024798,82931.0,82930.0,0.00011681]
[1742124743448,1.358358,82931.0,82930.0,0.00011681]
[1742124743650,1.362358,82931.0,82930.0,0.00011681]
[1742124744210,1.408358,82931.0,82930.0,0.00011681]
[1742124744415,1.41928058,82931.0,82930.0,0.00011681]
[1742124745416,1.26276058,82931.0,82930.0,0.00011681]
[1742124745603,1.362358,82931.0,82930.0,0.00011681]
[1742124745800,1.38189885,82931.0,82930.0,0.00011681]
[1742124745995,1.48583193,82931.0,82930.0,0.00011681]
[1742124746382,1.48283193,82931.0,82930.0,0.00011681]
[1742124746580,1.54368191,82931.0,82930.0,0.00011681]
[1742124746785,1.66525694,82931.0,82930.0,0.00011681]
[1742124746983,1.66825694,82931.0,82930.0,0.00011681]
[1742124747187,1.54368191,82931.0,82930.0,0.00011681]
[1742124747547,1.55468191,82931.0,82930.0,0.00011681]
[1742124747951,1.55502051,82931.0,82930.0,0.00011681]
[1742124748369,1.55502051,82931.0,82930.0,8.1e-07]
[1742124748612,1.67459554,82931.0,82930.0,8.1e-07]
[1742124748862,0.656862,82918.0,82905.0,0.0031464]
[1742124749064,0.656862,82918.0,82917.0,0.00075351]
[1742124749420,0.3486,82918.0,82917.0,0.00075351]
[1742124749629,0.397722,82918.0,82917.0,0.00075351]
[1742124749823,0.409782,82918.0,82917.0,0.00075351]
[1742124750213,0.714782,82918.0,82917.0,0.00075351]
[1742124750415,0.73167934,82918.0,82917.0,0.00075351]
[1742124750617,0.48241734,82918.0,82917.0,0.00075351]
[1742124750823,0.02789734,82918.0,82917.0,0.00075351]
[1742124751021,0.02789734,82918.0,82917.0,0.00904886]
[1742124751325,0.02389734,82918.0,82917.0,0.05554886]
[1742124751727,0.002,82918.0,82917.0,0.05554886]
[1742124752382,0.7662186,82931.0,82917.0,0.42713438]
[1742124752668,0.001,82918.0,82917.0,0.42713438]
[1742124753580,0.01890375,82924.0,82917.0,0.42713438]
[1742124753822,0.01890375,82924.0,82918.0,0.05228845]
[1742124754019,0.01890375,82924.0,82918.0,0.05128845]
[1742124754424,0.00150742,82923.0,82918.0,0.05028845]
[1742124754659,0.24119,82922.0,82917.0,0.37233903]
[1742124754839,0.00150756,82921.0,82917.0,0.37233903]
[1742124755996,0.00150756,82921.0,82917.0,0.00075351]
[1742124755997,0.15648,82920.0,82917.0,0.00075351]
[1742124756252,0.25476756,82919.0,82918.0,0.002]
[1742124756429,0.55326,82919.0,82918.0,0.002]
[1742124756795,0.31206,82918.0,82917.0,0.00075351]
[1742124757129,0.31206,82918.0,82917.0,0.00275351]
[1742124757600,0.33401651,82918.0,82917.0,0.00275351]
[1742124757750,0.33401651,82918.0,82917.0,0.00075351]
[1742124758291,0.55972356,82918.0,82917.0,0.00075351]
[1742124759317,0.56472356,82918.0,82917.0,0.00075351]
[1742124759453,0.61472356,82918.0,82917.0,0.00075351]
[1742124759657,0.61872356,82918.0,82917.0,0.00075351]
[1742124759852,0.66494044,82918.0,82917.0,0.00075351]
[1742124760074,0.69811439,82918.0,82917.0,0.00075351]
[1742124760685,0.69811439,82918.0,82905.0,0.0031464]
[1742124760686,0.322437,82906.0,82905.0,9.1e-07]
[1742124760862,0.634498,82906.0,82905.0,9.1e-07]
[1742124761078,0.71830449,82906.0,82905.0,9.1e-07]
[1742124761278,0.75175727,82906.0,82905.0,9.1e-07]
[1742124762235,0.75175727,82906.0,82878.0,0.0375]
[1742124762236,0.005,82900.0,82899.0,5.1e-07]
[1742124762431,0.77584536,82900.0,82899.0,5.1e-07]
[1742124762632,0.61785685,82900.0,82899.0,5.1e-07]
[1742124762815,0.709796,82900.0,82899.0,5.1e-07]
[1742124763016,0.553316,82900.0,82899.0,5.1e-07]
[1742124763216,0.73940123,82900.0,82899.0,5.1e-07]
[1742124763415,0.75494208,82900.0,82899.0,5.1e-07]
[1742124763668,0.72833685,82900.0,82899.0,5.1e-07]
[1742124763875,0.74929336,82900.0,82899.0,5.1e-07]
[1742124764079,0.79929336,82900.0,82899.0,5.1e-07]
[1742124765779,0.77733685,82900.0,82899.0,5.1e-07]
[1742124765935,0.78233685,82900.0,82899.0,5.1e-07]
[1742124766133,0.90191188,82900.0,82899.0,5.1e-07]
[1742124766965,0.717756,82900.0,82899.0,5.1e-07]
[1742124767172,0.767756,82900.0,82899.0,5.1e-07]
[1742124767513,0.82481267,82900.0,82899.0,5.1e-07]
[1742124768070,0.83935352,82900.0,82899.0,5.1e-07]
[1742124768270,0.80424172,82900.0,82899.0,5.1e-07]
[1742124768488,0.92381675,82900.0,82899.0,5.1e-07]
[1742124768847,1.04184975,82900.0,82899.0,5.1e-07]
[1742124769275,1.04384975,82900.0,82899.0,5.1e-07]
[1742124769478,0.55335,82889.0,82878.0,0.0375]
[1742124769845,1.33417085,82889.0,82878.0,0.0375]
[1742124770048,1.44517455,82889.0,82878.0,0.0375]
[1742124770202,1.31963,82889.0,82878.0,0.0375]
[1742124770576,1.46098649,82889.0,82878.0,0.0375]
[1742124770782,1.46198649,82889.0,82878.0,0.0375]
[1742124771192,0.55338,82879.0,82878.0,0.0375]
[1742124771398,0.70986,82879.0,82878.0,0.0375]
[1742124771843,0.72440085,82879.0,82878.0,0.0375]
[1742124772617,0.85555489,82879.0,82878.0,0.0375]
[1742124773018,0.92447241,82879.0,82878.0,0.0375]
[1742124773391,0.86397149,82879.0,82878.0,0.0375]
[1742124773591,0.70753149,82879.0,82878.0,0.0375]
[1742124773776,0.86397149,82879.0,82878.0,0.0375]
[1742124774618,0.92851234,82879.0,82878.0,0.0375]
[1742124775026,0.87851234,82879.0,82878.0,0.0375]
[1742124775221,1.04808737,82879.0,82878.0,0.0375]
[1742124775835,1.04808737,82879.0,82871.0,0.0008]
[1742124775836,0.603387,82877.0,82871.0,0.0008]
[1742124776659,0.61792785,82877.0,82871.0,0.0008]
[1742124777139,0.62292785,82877.0,82871.0,0.0008]
[1742124777348,0.57292785,82877.0,82871.0,0.0008]
[1742124777551,0.57692785,82877.0,82871.0,0.0008]
[1742124777723,0.63396182,82877.0,82871.0,0.0008]
[1742124779088,0.79040182,82877.0,82871.0,0.0008]
[1742124779288,0.77586097,82877.0,82871.0,0.0008]
[1742124780618,0.61942097,82877.0,82871.0,0.0008]
[1742124780797,0.77586097,82877.0,82871.0,0.0008]
[1742124783296,0.61942097,82877.0,82871.0,0.0008]
[1742124783467,0.77586097,82877.0,82871.0,0.0008]
[1742124783893,0.06603397,82877.0,82871.0,0.0008]
[1742124784104,0.06603397,82877.0,82873.0,0.005]
[1742124784311,0.21847397,82877.0,82876.0,0.0053384]
[1742124784507,0.21847397,82877.0,82876.0,0.0003384]
[1742124784717,0.22198248,82877.0,82876.0,0.0003384]
[1742124784924,0.06554248,82877.0,82876.0,0.0003384]
[1742124785286,0.18538487,82877.0,82876.0,0.00903916]
[1742124785501,0.18538487,82877.0,82876.0,0.01403916]
[1742124785502,0.02894487,82877.0,82876.0,0.01403916]
[1742124785706,0.18038487,82877.0,82876.0,0.43552468]
[1742124785873,0.02394487,82877.0,82876.0,0.43552468]
[1742124786106,0.02494487,82877.0,82876.0,0.43552468]
[1742124786510,0.02494487,82877.0,82876.0,0.45006553]
[1742124786717,0.00041564,82889.0,82888.0,0.0857]
[1742124786884,0.00041564,82889.0,82888.0,0.09427]
[1742124787098,0.00041564,82889.0,82888.0,0.08927]
[1742124787230,0.00041564,82889.0,82888.0,0.01357]
[1742124787426,0.00041564,82889.0,82888.0,0.005]
[1742124787632,0.00041564,82889.0,82888.0,0.004]
[1742124787837,0.00041564,82889.0,82888.0,0.37558552]
[1742124788341,0.00041564,82889.0,82888.0,0.39012637]
[1742124788499,0.00041564,82889.0,82888.0,0.47082637]
[1742124788712,0.1233716,82900.0,82899.0,0.004]
[1742124788986,0.1233716,82900.0,82899.0,0.003]
[1742124789715,0.1233716,82900.0,82899.0,0.006]
[1742124790135,0.1233716,82900.0,82899.0,0.002]
[1742124790339,0.1233716,82900.0,82899.0,0.01]
[1742124790697,0.1233716,82900.0,82899.0,0.38158552]
[1742124790898,0.1233716,82900.0,82899.0,0.50044407]
[1742124791105,0.1233716,82900.0,82899.0,0.50444407]
[1742124791835,0.1233716,82900.0,82899.0,0.38558552]